[Event "Late-Titled-Tuesday-Blitz-August-29-2023"]
[Site "Chess.com"]
[Date "2023.08.29"]
[Round "2"]
[White "RamyresCoelho"]
[Black "rookoco"]
[Result "0-1"]
[WhiteElo "2345"]
[BlackElo "2689"]
[TimeControl "180+1"]
[EndTime "14:17:47 PDT"]
[Termination "rookoco won by checkmate"]

1. e4 {[%clk 0:03:00]} 1... c5 {[%clk 0:02:56.7]} 2. Nf3 {[%clk 0:02:54.9]} 2...
d6 {[%clk 0:02:53.2]} 3. d4 {[%clk 0:02:54.7]} 3... cxd4 {[%clk 0:02:53.1]} 4.
Nxd4 {[%clk 0:02:55.6]} 4... Nf6 {[%clk 0:02:53.5]} 5. Nc3 {[%clk 0:02:56.1]}
5... g6 {[%clk 0:02:54.1]} 6. f4 {[%clk 0:02:56.3]} 6... Nbd7 {[%clk 0:02:51.1]}
7. Bc4 {[%clk 0:02:54]} 7... Bg7 {[%clk 0:02:43.7]} 8. Qe2 {[%clk 0:02:38.5]}
8... O-O {[%clk 0:02:31.3]} 9. Be3 {[%clk 0:02:14.8]} 9... e5 {[%clk 0:02:21.1]}
10. Nf3 {[%clk 0:02:09.6]} 10... a6 {[%clk 0:01:00.6]} 11. O-O-O {[%clk
0:02:02.5]} 11... b5 {[%clk 0:00:46]} 12. Bd5 {[%clk 0:02:02.3]} 12... Nxd5
{[%clk 0:00:43.8]} 13. Nxd5 {[%clk 0:02:03.2]} 13... Bb7 {[%clk 0:00:41.1]} 14.
Bb6 {[%clk 0:01:58.4]} 14... Nxb6 {[%clk 0:00:40]} 15. fxe5 {[%clk 0:01:51.4]}
15... dxe5 {[%clk 0:00:37.3]} 16. h4 {[%clk 0:01:45.1]} 16... Bxd5 {[%clk
0:00:36.8]} 17. exd5 {[%clk 0:01:45.8]} 17... Nc4 {[%clk 0:00:36.2]} 18. h5
{[%clk 0:01:43]} 18... e4 {[%clk 0:00:35.3]} 19. Nd4 {[%clk 0:01:25.5]} 19...
Qxd5 {[%clk 0:00:34.7]} 20. c3 {[%clk 0:01:24.2]} 20... Qg5+ {[%clk 0:00:30.8]}
21. Kb1 {[%clk 0:01:23.4]} 21... Qe3 {[%clk 0:00:30.5]} 22. Qc2 {[%clk
0:01:21.1]} 22... Rad8 {[%clk 0:00:24.2]} 23. hxg6 {[%clk 0:01:20.5]} 23... hxg6
{[%clk 0:00:25]} 24. Rh3 {[%clk 0:01:19.8]} 24... Qf4 {[%clk 0:00:24.4]} 25.
Rdh1 {[%clk 0:01:18.8]} 25... e3 {[%clk 0:00:21.8]} 26. Ne2 {[%clk 0:01:14.6]}
26... Qf5 {[%clk 0:00:20.7]} 27. Qxf5 {[%clk 0:01:13.9]} 27... gxf5 {[%clk
0:00:21.6]} 28. Nf4 {[%clk 0:01:12.7]} 28... Rd2 {[%clk 0:00:19.2]} 29. Nh5
{[%clk 0:01:11.7]} 29... Rxb2+ {[%clk 0:00:18.4]} 30. Ka1 {[%clk 0:01:12.1]}
30... Rxg2 {[%clk 0:00:19.1]} 31. Nxg7 {[%clk 0:01:09.4]} 31... Kxg7 {[%clk
0:00:19.5]} 32. Rh7+ {[%clk 0:01:05.6]} 32... Kf6 {[%clk 0:00:19.2]} 33. R7h6+
{[%clk 0:01:06.1]} 33... Rg6 {[%clk 0:00:18.7]} 34. R6h2 {[%clk 0:01:04.6]}
34... Re8 {[%clk 0:00:18.8]} 35. Re2 {[%clk 0:01:04.2]} 35... f4 {[%clk
0:00:18.8]} 36. Rf1 {[%clk 0:01:04.1]} 36... Ke5 {[%clk 0:00:19.2]} 37. Kb1
{[%clk 0:01:03.5]} 37... Ke4 {[%clk 0:00:19.6]} 38. Kc2 {[%clk 0:01:03.5]} 38...
f3 {[%clk 0:00:20]} 39. Rh2 {[%clk 0:01:03.7]} 39... Rg2+ {[%clk 0:00:20.2]} 40.
Rxg2 {[%clk 0:01:03.2]} 40... fxg2 {[%clk 0:00:21.1]} 41. Rg1 {[%clk 0:01:04.1]}
41... Kf3 {[%clk 0:00:21.7]} 42. a4 {[%clk 0:01:03.4]} 42... bxa4 {[%clk
0:00:20.4]} 43. Kd3 {[%clk 0:01:01.1]} 43... Ne5+ {[%clk 0:00:20.7]} 44. Kd4
{[%clk 0:00:58.9]} 44... Kf2 {[%clk 0:00:21]} 45. Ra1 {[%clk 0:00:54.9]} 45...
g1=Q {[%clk 0:00:21.1]} 46. Ra2+ {[%clk 0:00:55.3]} 46... Kf3 {[%clk 0:00:21.2]}
47. c4 {[%clk 0:00:54.7]} 47... Qd1+ {[%clk 0:00:20.7]} 48. Kc5 {[%clk
0:00:53.9]} 48... Rc8+ {[%clk 0:00:20.6]} 49. Kb4 {[%clk 0:00:53.3]} 49... Qb3+
{[%clk 0:00:20.8]} 50. Ka5 {[%clk 0:00:53.1]} 50... Nc6+ {[%clk 0:00:21.5]} 51.
Kxa6 {[%clk 0:00:52.5]} 51... Ra8# {[%clk 0:00:22.4]} 0-1

[Event "Late-Titled-Tuesday-Blitz-August-29-2023"]
[Site "Chess.com"]
[Date "2023.08.29"]
[Round "2"]
[White "Kacparov"]
[Black "chessS1r"]
[Result "1-0"]
[WhiteElo "2926"]
[BlackElo "2589"]
[TimeControl "180+1"]
[EndTime "14:17:51 PDT"]
[Termination "Kacparov won by checkmate"]

1. e4 {[%clk 0:03:00.9]} 1... e6 {[%clk 0:03:00.5]} 2. d4 {[%clk 0:03:00.2]}
2... d5 {[%clk 0:03:01.1]} 3. Nc3 {[%clk 0:02:59.6]} 3... Nf6 {[%clk 0:03:00.9]}
4. Bg5 {[%clk 0:02:59.5]} 4... h6 {[%clk 0:02:57.2]} 5. Bxf6 {[%clk 0:02:57.2]}
5... Qxf6 {[%clk 0:02:58.1]} 6. exd5 {[%clk 0:02:55.2]} 6... Bb4 {[%clk
0:02:58.5]} 7. Bb5+ {[%clk 0:02:21.4]} 7... c6 {[%clk 0:02:58.2]} 8. dxc6 {[%clk
0:02:20.2]} 8... bxc6 {[%clk 0:02:58.6]} 9. Be2 {[%clk 0:02:16.9]} 9... O-O
{[%clk 0:02:49.7]} 10. Nf3 {[%clk 0:02:16.8]} 10... Bb7 {[%clk 0:02:17.1]} 11.
O-O {[%clk 0:02:15.6]} 11... c5 {[%clk 0:02:16.6]} 12. a3 {[%clk 0:02:02.9]}
12... Bxc3 {[%clk 0:01:57.6]} 13. bxc3 {[%clk 0:02:03.8]} 13... Rd8 {[%clk
0:01:53.5]} 14. Qb1 {[%clk 0:02:03.3]} 14... Bc6 {[%clk 0:01:42.9]} 15. Rd1
{[%clk 0:01:55.8]} 15... Nd7 {[%clk 0:01:40.6]} 16. Qc1 {[%clk 0:01:44.7]} 16...
Rac8 {[%clk 0:01:24.5]} 17. a4 {[%clk 0:01:33.1]} 17... Nb6 {[%clk 0:01:14.9]}
18. Ne5 {[%clk 0:01:11.7]} 18... Ba8 {[%clk 0:00:38]} 19. Bf3 {[%clk 0:01:05.8]}
19... Nd5 {[%clk 0:00:32.1]} 20. Bxd5 {[%clk 0:01:01.8]} 20... Rxd5 {[%clk
0:00:30.4]} 21. Qe3 {[%clk 0:00:56.2]} 21... cxd4 {[%clk 0:00:29.2]} 22. cxd4
{[%clk 0:00:57.1]} 22... Rxc2 {[%clk 0:00:28.1]} 23. Rac1 {[%clk 0:00:56.4]}
23... Rxc1 {[%clk 0:00:25.2]} 24. Rxc1 {[%clk 0:00:57.3]} 24... Rd8 {[%clk
0:00:25]} 25. h3 {[%clk 0:00:55.5]} 25... Qe7 {[%clk 0:00:24]} 26. Qg3 {[%clk
0:00:49.1]} 26... Rxd4 {[%clk 0:00:13.2]} 27. Ng4 {[%clk 0:00:39.7]} 27... Kh7
{[%clk 0:00:06]} 28. Rc7 {[%clk 0:00:39]} 28... Qd6 {[%clk 0:00:04.2]} 29. Qxd6
{[%clk 0:00:34.4]} 29... Rxd6 {[%clk 0:00:05.1]} 30. Rxa7 {[%clk 0:00:33.8]}
30... f5 {[%clk 0:00:05.4]} 31. Nf6+ {[%clk 0:00:27.2]} 31... Kg6 {[%clk
0:00:05]} 32. Ne8 {[%clk 0:00:24.1]} 32... Rd1+ {[%clk 0:00:05.2]} 33. Kh2
{[%clk 0:00:24.5]} 33... Bd5 {[%clk 0:00:05.6]} 34. Rxg7+ {[%clk 0:00:24.3]}
34... Kh5 {[%clk 0:00:05]} 35. Nf6+ {[%clk 0:00:24.7]} 35... Kh4 {[%clk
0:00:04.9]} 36. g3# {[%clk 0:00:24.2]} 1-0

[Event "Late-Titled-Tuesday-Blitz-August-29-2023"]
[Site "Chess.com"]
[Date "2023.08.29"]
[Round "2"]
[White "SaqoChess_Twitch"]
[Black "VladimirKramnik"]
[Result "1-0"]
[WhiteElo "2633"]
[BlackElo "2943"]
[TimeControl "180+1"]
[EndTime "14:17:52 PDT"]
[Termination "SaqoChess_Twitch won by checkmate"]

1. d4 {[%clk 0:02:59.6]} 1... Nf6 {[%clk 0:02:59.6]} 2. c4 {[%clk 0:02:58.9]}
2... e6 {[%clk 0:02:59.5]} 3. Nc3 {[%clk 0:02:59.3]} 3... d5 {[%clk 0:02:59.2]}
4. Bg5 {[%clk 0:02:56.7]} 4... Be7 {[%clk 0:02:58.5]} 5. Nf3 {[%clk 0:02:55.8]}
5... h6 {[%clk 0:02:58.6]} 6. Bh4 {[%clk 0:02:55.5]} 6... O-O {[%clk 0:02:58.6]}
7. cxd5 {[%clk 0:02:56.1]} 7... Nxd5 {[%clk 0:02:55.3]} 8. Bxe7 {[%clk
0:02:56.2]} 8... Qxe7 {[%clk 0:02:55.2]} 9. Nxd5 {[%clk 0:02:53.3]} 9... exd5
{[%clk 0:02:54.6]} 10. e3 {[%clk 0:02:54]} 10... c6 {[%clk 0:02:49.5]} 11. Qc2
{[%clk 0:02:51.1]} 11... Nd7 {[%clk 0:02:44.1]} 12. Bd3 {[%clk 0:02:51.6]} 12...
Nf6 {[%clk 0:02:30.3]} 13. O-O {[%clk 0:02:51.9]} 13... Re8 {[%clk 0:02:27]} 14.
Ne5 {[%clk 0:02:50.9]} 14... Ng4 {[%clk 0:02:20.9]} 15. Nxg4 {[%clk 0:02:40.9]}
15... Bxg4 {[%clk 0:02:20.5]} 16. Bf5 {[%clk 0:02:41.5]} 16... Bxf5 {[%clk
0:02:17.8]} 17. Qxf5 {[%clk 0:02:42.4]} 17... Rad8 {[%clk 0:02:17.3]} 18. Rfb1
{[%clk 0:02:40.5]} 18... Rd6 {[%clk 0:02:04.2]} 19. b4 {[%clk 0:02:39.9]} 19...
Rf6 {[%clk 0:02:01.6]} 20. Qd3 {[%clk 0:02:35.2]} 20... h5 {[%clk 0:01:49.7]}
21. b5 {[%clk 0:02:22.9]} 21... h4 {[%clk 0:01:47.7]} 22. bxc6 {[%clk
0:02:23.2]} 22... bxc6 {[%clk 0:01:47.7]} 23. Rb2 {[%clk 0:02:14.4]} 23... Rg6
{[%clk 0:01:39.3]} 24. g3 {[%clk 0:01:53.4]} 24... Qc7 {[%clk 0:01:30.8]} 25.
Rab1 {[%clk 0:01:50.7]} 25... Rge6 {[%clk 0:01:19.8]} 26. Rb7 {[%clk 0:01:44.9]}
26... Qa5 {[%clk 0:01:18]} 27. Qf5 {[%clk 0:01:35]} 27... Rf6 {[%clk 0:01:16.6]}
28. Qd7 {[%clk 0:01:28.3]} 28... Re4 {[%clk 0:00:53]} 29. Rb8+ {[%clk
0:01:07.1]} 29... Kh7 {[%clk 0:00:52.3]} 30. Qc8 {[%clk 0:01:02.6]} 30... Qxa2
{[%clk 0:00:30.5]} 31. Rf1 {[%clk 0:00:55.4]} 31... Kg6 {[%clk 0:00:26.2]} 32.
Qh8 {[%clk 0:00:50.9]} 32... hxg3 {[%clk 0:00:24.5]} 33. hxg3 {[%clk 0:00:44.8]}
33... Qe2 {[%clk 0:00:17.5]} 34. Rg8 {[%clk 0:00:41.3]} 34... Kf5 {[%clk
0:00:13.8]} 35. Rxg7 {[%clk 0:00:34.6]} 35... Ke6 {[%clk 0:00:06.9]} 36. Qc8+
{[%clk 0:00:32.3]} 36... Ke7 {[%clk 0:00:04.4]} 37. Rg8 {[%clk 0:00:31.4]} 37...
Rfe6 {[%clk 0:00:04]} 38. Qd8# {[%clk 0:00:30.9]} 1-0

[Event "Late-Titled-Tuesday-Blitz-August-29-2023"]
[Site "Chess.com"]
[Date "2023.08.29"]
[Round "2"]
[White "bescmelasti"]
[Black "jefferyx"]
[Result "0-1"]
[WhiteElo "2651"]
[BlackElo "3026"]
[TimeControl "180+1"]
[EndTime "14:17:54 PDT"]
[Termination "jefferyx won by resignation"]

1. e4 {[%clk 0:03:00.9]} 1... c5 {[%clk 0:02:59.9]} 2. Nf3 {[%clk 0:03:00.7]}
2... d6 {[%clk 0:03:00.6]} 3. d4 {[%clk 0:02:58.2]} 3... Nf6 {[%clk 0:03:00.8]}
4. Nc3 {[%clk 0:02:57.6]} 4... cxd4 {[%clk 0:03:01.2]} 5. Nxd4 {[%clk
0:02:58.5]} 5... a6 {[%clk 0:03:01.6]} 6. a3 {[%clk 0:02:53.1]} 6... g6 {[%clk
0:02:39.2]} 7. f3 {[%clk 0:02:51.9]} 7... Bg7 {[%clk 0:02:39.6]} 8. Be3 {[%clk
0:02:52.5]} 8... O-O {[%clk 0:02:40]} 9. Qd2 {[%clk 0:02:52.9]} 9... Nc6 {[%clk
0:02:40.4]} 10. O-O-O {[%clk 0:02:46.8]} 10... Bd7 {[%clk 0:02:31.8]} 11. g4
{[%clk 0:02:39.3]} 11... Ne5 {[%clk 0:02:07.2]} 12. h4 {[%clk 0:02:38.4]} 12...
Rc8 {[%clk 0:02:06.3]} 13. h5 {[%clk 0:02:33.4]} 13... Re8 {[%clk 0:01:27.9]}
14. hxg6 {[%clk 0:02:26.7]} 14... fxg6 {[%clk 0:01:28]} 15. Bh6 {[%clk
0:02:19.3]} 15... Bh8 {[%clk 0:01:28]} 16. Bg5 {[%clk 0:01:52.9]} 16... Nf7
{[%clk 0:01:23.8]} 17. Be3 {[%clk 0:01:47.9]} 17... Rf8 {[%clk 0:01:05.3]} 18.
Bh3 {[%clk 0:01:44.4]} 18... Ne5 {[%clk 0:00:57.6]} 19. g5 {[%clk 0:01:43.7]}
19... Nc4 {[%clk 0:00:57.7]} 20. Qe2 {[%clk 0:01:32]} 20... Nh5 {[%clk 0:00:54]}
21. Ne6 {[%clk 0:01:13.9]} 21... Qa5 {[%clk 0:00:53.8]} 22. Bd4 {[%clk 0:00:50]}
22... Nxb2 {[%clk 0:00:31.5]} 23. Nxf8 {[%clk 0:00:37.4]} 23... Bxh3 {[%clk
0:00:29.6]} 24. Bxh8 {[%clk 0:00:20.6]} 24... Nxd1 {[%clk 0:00:29.8]} 25. Nxd1
{[%clk 0:00:17.6]} 25... Kxh8 {[%clk 0:00:29.3]} 26. Nxg6+ {[%clk 0:00:15.6]}
26... hxg6 {[%clk 0:00:30.2]} 27. Rxh3 {[%clk 0:00:16.2]} 27... Qxa3+ {[%clk
0:00:30.9]} 28. Kd2 {[%clk 0:00:16.3]} 28... Kg7 {[%clk 0:00:31.2]} 29. Qd3
{[%clk 0:00:16.1]} 29... Qxd3+ {[%clk 0:00:22.7]} 30. cxd3 {[%clk 0:00:17]}
30... Nf4 {[%clk 0:00:23.2]} 31. Rh1 {[%clk 0:00:15.2]} 31... Ne6 {[%clk
0:00:21]} 32. Rg1 {[%clk 0:00:14.2]} 32... Nd4 {[%clk 0:00:21.5]} 33. Ke3 {[%clk
0:00:13.8]} 33... e5 {[%clk 0:00:22]} 34. f4 {[%clk 0:00:13.4]} 34... Rc2 {[%clk
0:00:22.5]} 35. fxe5 {[%clk 0:00:10.9]} 35... dxe5 {[%clk 0:00:22.4]} 36. Re1
{[%clk 0:00:11.2]} 36... Rg2 {[%clk 0:00:22.7]} 37. Nc3 {[%clk 0:00:10.2]} 37...
Nc2+ {[%clk 0:00:22.9]} 38. Kf3 {[%clk 0:00:09.6]} 38... Nxe1+ {[%clk
0:00:23.8]} 0-1

[Event "Late-Titled-Tuesday-Blitz-August-29-2023"]
[Site "Chess.com"]
[Date "2023.08.29"]
[Round "2"]
[White "grzechu96"]
[Black "KorolDimitriy75"]
[Result "1-0"]
[WhiteElo "2713"]
[BlackElo "2373"]
[TimeControl "180+1"]
[EndTime "14:17:55 PDT"]
[Termination "grzechu96 won on time"]

1. e4 {[%clk 0:03:00.9]} 1... c5 {[%clk 0:03:00.1]} 2. Nf3 {[%clk 0:03:01]} 2...
d6 {[%clk 0:03:00.1]} 3. Bb5+ {[%clk 0:02:54.4]} 3... Nd7 {[%clk 0:02:59.4]} 4.
O-O {[%clk 0:02:53.1]} 4... Nf6 {[%clk 0:02:59.2]} 5. Re1 {[%clk 0:02:50.2]}
5... a6 {[%clk 0:02:59.1]} 6. Bd3 {[%clk 0:02:50.2]} 6... e5 {[%clk 0:02:57.6]}
7. c3 {[%clk 0:02:48.3]} 7... g6 {[%clk 0:02:41.5]} 8. Bc2 {[%clk 0:02:45.3]}
8... Bg7 {[%clk 0:02:41.3]} 9. d4 {[%clk 0:02:45.6]} 9... O-O {[%clk 0:02:39.3]}
10. a4 {[%clk 0:02:45.2]} 10... b6 {[%clk 0:02:28.8]} 11. Nbd2 {[%clk
0:02:40.8]} 11... Qc7 {[%clk 0:02:26.9]} 12. d5 {[%clk 0:02:18.5]} 12... Nh5
{[%clk 0:01:57]} 13. Nf1 {[%clk 0:02:02.7]} 13... Qd8 {[%clk 0:01:30.3]} 14. Bg5
{[%clk 0:01:58.8]} 14... f6 {[%clk 0:01:28.3]} 15. Be3 {[%clk 0:01:55.4]} 15...
Qe8 {[%clk 0:01:15]} 16. N1d2 {[%clk 0:01:30]} 16... h6 {[%clk 0:00:24.8]} 17.
Nc4 {[%clk 0:01:27.2]} 17... Qe7 {[%clk 0:00:25]} 18. Nh4 {[%clk 0:01:09.4]}
18... Kh7 {[%clk 0:00:14.1]} 19. Nxg6 {[%clk 0:01:09]} 19... Kxg6 {[%clk
0:00:13.3]} 20. Qg4+ {[%clk 0:01:09.6]} 20... Kh7 {[%clk 0:00:13.7]} 21. Qxh5
{[%clk 0:01:09.6]} 21... Rb8 {[%clk 0:00:11.3]} 22. Qf5+ {[%clk 0:01:02.5]}
22... Kh8 {[%clk 0:00:10.9]} 23. Qg6 {[%clk 0:01:02.7]} 23... Rf7 {[%clk
0:00:07.5]} 24. Nxd6 {[%clk 0:00:59.6]} 24... Qxd6 {[%clk 0:00:02]} 25. Qxf7
{[%clk 0:00:59.8]} 25... Nf8 {[%clk 0:00:01.9]} 26. Qh5 {[%clk 0:00:51.8]} 26...
Kh7 {[%clk 0:00:02]} 27. c4 {[%clk 0:00:51]} 27... Bd7 {[%clk 0:00:02.4]} 28.
Bd1 {[%clk 0:00:40.6]} 28... Be8 {[%clk 0:00:02.5]} 29. Qh3 {[%clk 0:00:39.1]}
29... Bg6 {[%clk 0:00:03]} 30. Bg4 {[%clk 0:00:36.1]} 30... Bxe4 {[%clk
0:00:01.6]} 31. Bxh6 {[%clk 0:00:29.3]} 31... Bxh6 {[%clk 0:00:01.4]} 32. Rxe4
{[%clk 0:00:28.9]} 32... Rb7 {[%clk 0:00:01.5]} 33. Bf5+ {[%clk 0:00:27.3]}
33... Kg7 {[%clk 0:00:01.4]} 34. Rg4+ {[%clk 0:00:26.9]} 34... Bg5 {[%clk
0:00:01.6]} 35. Qh5 {[%clk 0:00:25.5]} 1-0

[Event "Late-Titled-Tuesday-Blitz-August-29-2023"]
[Site "Chess.com"]
[Date "2023.08.29"]
[Round "2"]
[White "Tejas_Rama"]
[Black "artin10862"]
[Result "0-1"]
[WhiteElo "2537"]
[BlackElo "2833"]
[TimeControl "180+1"]
[EndTime "14:17:56 PDT"]
[Termination "artin10862 won by resignation"]

1. d4 {[%clk 0:03:00.9]} 1... Nf6 {[%clk 0:02:58]} 2. c4 {[%clk 0:03:01.4]} 2...
g6 {[%clk 0:02:58.6]} 3. Nf3 {[%clk 0:03:01.3]} 3... Bg7 {[%clk 0:02:57.1]} 4.
Nc3 {[%clk 0:03:01.9]} 4... d5 {[%clk 0:02:57]} 5. Qb3 {[%clk 0:03:02.1]} 5...
dxc4 {[%clk 0:02:40.7]} 6. Qxc4 {[%clk 0:03:03]} 6... Be6 {[%clk 0:02:40.6]} 7.
Qa4+ {[%clk 0:02:44.4]} 7... c6 {[%clk 0:02:37.3]} 8. e4 {[%clk 0:02:16]} 8...
Bg4 {[%clk 0:02:36.4]} 9. Be2 {[%clk 0:02:08.5]} 9... O-O {[%clk 0:02:24.4]} 10.
Be3 {[%clk 0:02:01.4]} 10... b5 {[%clk 0:02:23.5]} 11. Qc2 {[%clk 0:01:50]}
11... c5 {[%clk 0:01:41.5]} 12. dxc5 {[%clk 0:01:35.9]} 12... b4 {[%clk
0:01:41]} 13. Nb1 {[%clk 0:01:13]} 13... Nc6 {[%clk 0:01:21.7]} 14. Nbd2 {[%clk
0:01:10.1]} 14... Bxf3 {[%clk 0:01:18.1]} 15. Nxf3 {[%clk 0:01:07.2]} 15... Ng4
{[%clk 0:01:18.1]} 16. Bg5 {[%clk 0:00:52.3]} 16... Qc7 {[%clk 0:01:00.6]} 17.
h3 {[%clk 0:00:48.6]} 17... Nge5 {[%clk 0:00:59.3]} 18. Nxe5 {[%clk 0:00:39.9]}
18... Bxe5 {[%clk 0:00:50.7]} 19. O-O {[%clk 0:00:37.7]} 19... Nd4 {[%clk
0:00:47.7]} 20. Qd2 {[%clk 0:00:35.8]} 20... Rfd8 {[%clk 0:00:41.5]} 21. Bd3
{[%clk 0:00:22.2]} 21... Ne6 {[%clk 0:00:21]} 22. Be3 {[%clk 0:00:19.8]} 22...
Nxc5 {[%clk 0:00:20.1]} 23. Rac1 {[%clk 0:00:13.6]} 23... Rxd3 {[%clk
0:00:19.6]} 24. Rxc5 {[%clk 0:00:12.1]} 24... Rxd2 {[%clk 0:00:16.3]} 25. Rxc7
{[%clk 0:00:12]} 25... Rxb2 {[%clk 0:00:17]} 26. Rxe7 {[%clk 0:00:11.7]} 26...
Bf6 {[%clk 0:00:17.5]} 27. Rxa7 {[%clk 0:00:11.3]} 27... Rxa7 {[%clk 0:00:17.1]}
28. Bxa7 {[%clk 0:00:11.6]} 28... Rxa2 {[%clk 0:00:17.8]} 29. Rb1 {[%clk
0:00:07.7]} 29... Rxa7 {[%clk 0:00:15.6]} 30. Rxb4 {[%clk 0:00:07.9]} 30... Ra2
{[%clk 0:00:13.9]} 31. Kh2 {[%clk 0:00:08.4]} 31... Rxf2 {[%clk 0:00:13.1]} 0-1

[Event "Late-Titled-Tuesday-Blitz-August-29-2023"]
[Site "Chess.com"]
[Date "2023.08.29"]
[Round "2"]
[White "DanielDardha2005"]
[Black "FedaMaster"]
[Result "0-1"]
[WhiteElo "2934"]
[BlackElo "2685"]
[TimeControl "180+1"]
[EndTime "14:17:58 PDT"]
[Termination "FedaMaster won by checkmate"]

1. e4 {[%clk 0:03:00.9]} 1... d5 {[%clk 0:02:52.2]} 2. exd5 {[%clk 0:03:00.9]}
2... Qxd5 {[%clk 0:02:53]} 3. Nc3 {[%clk 0:02:59.7]} 3... Qd6 {[%clk 0:02:53.5]}
4. d4 {[%clk 0:02:59.2]} 4... Nf6 {[%clk 0:02:54]} 5. Nf3 {[%clk 0:02:59.2]}
5... Bg4 {[%clk 0:02:54.7]} 6. Be2 {[%clk 0:02:57.4]} 6... Nc6 {[%clk
0:02:54.2]} 7. Nb5 {[%clk 0:02:55.7]} 7... Qd8 {[%clk 0:02:54]} 8. c4 {[%clk
0:02:51]} 8... e6 {[%clk 0:02:53.2]} 9. Be3 {[%clk 0:02:50.6]} 9... Bb4+ {[%clk
0:02:52]} 10. Nc3 {[%clk 0:02:50.7]} 10... Ne4 {[%clk 0:02:28.2]} 11. Qc2 {[%clk
0:02:41.2]} 11... Nxc3 {[%clk 0:01:41.4]} 12. bxc3 {[%clk 0:02:42.1]} 12... Bxf3
{[%clk 0:01:41.7]} 13. Bxf3 {[%clk 0:02:40.2]} 13... Nxd4 {[%clk 0:01:42.3]} 14.
Bxd4 {[%clk 0:02:40.4]} 14... Qxd4 {[%clk 0:01:41.6]} 15. Qa4+ {[%clk
0:02:40.7]} 15... c6 {[%clk 0:01:37.8]} 16. Qxb4 {[%clk 0:02:39.9]} 16... Qe5+
{[%clk 0:01:36.2]} 17. Kf1 {[%clk 0:02:39.9]} 17... O-O-O {[%clk 0:01:35.9]} 18.
Rb1 {[%clk 0:02:32.5]} 18... Rd7 {[%clk 0:01:28.2]} 19. g3 {[%clk 0:02:32.4]}
19... Rhd8 {[%clk 0:01:04]} 20. Kg2 {[%clk 0:02:31.4]} 20... Qc7 {[%clk
0:00:57]} 21. c5 {[%clk 0:02:26.6]} 21... f5 {[%clk 0:00:49.1]} 22. Rhd1 {[%clk
0:02:08.1]} 22... e5 {[%clk 0:00:46.8]} 23. Be2 {[%clk 0:02:00.9]} 23... e4
{[%clk 0:00:26.3]} 24. Bc4 {[%clk 0:01:51.8]} 24... Rxd1 {[%clk 0:00:23.9]} 25.
Be6+ {[%clk 0:01:48.1]} 25... Kb8 {[%clk 0:00:23.6]} 26. Rb2 {[%clk 0:01:47]}
26... R1d2 {[%clk 0:00:20.2]} 27. Rxd2 {[%clk 0:01:02]} 27... Rxd2 {[%clk
0:00:21.1]} 28. Kf1 {[%clk 0:01:02.9]} 28... Qe5 {[%clk 0:00:16.9]} 29. Bc4
{[%clk 0:00:40.9]} 29... e3 {[%clk 0:00:16.8]} 30. Ba6 {[%clk 0:00:37.2]} 30...
Rxf2+ {[%clk 0:00:14]} 31. Kg1 {[%clk 0:00:37.6]} 31... Qe7 {[%clk 0:00:11.9]}
32. Bf1 {[%clk 0:00:31.8]} 32... e2 {[%clk 0:00:08.1]} 33. Kxf2 {[%clk
0:00:31.7]} 33... e1=Q+ {[%clk 0:00:07.9]} 34. Kg1 {[%clk 0:00:31.6]} 34...
Q7e3+ {[%clk 0:00:07.3]} 35. Kg2 {[%clk 0:00:32.1]} 35... Q1f2+ {[%clk
0:00:07.4]} 36. Kh3 {[%clk 0:00:33]} 36... Qxf1+ {[%clk 0:00:08.1]} 37. Kh4
{[%clk 0:00:33.5]} 37... Qe4+ {[%clk 0:00:07.8]} 38. g4 {[%clk 0:00:34.2]} 38...
Qxb4 {[%clk 0:00:07.8]} 39. h3 {[%clk 0:00:34.7]} 39... Qff4 {[%clk 0:00:08.1]}
40. a4 {[%clk 0:00:35.6]} 40... g5+ {[%clk 0:00:07.6]} 41. Kh5 {[%clk
0:00:36.1]} 41... fxg4 {[%clk 0:00:08.5]} 42. a5 {[%clk 0:00:34.4]} 42... Qf7+
{[%clk 0:00:08.4]} 43. Kh6 {[%clk 0:00:34.5]} 43... Qg6# {[%clk 0:00:08.6]} 0-1

[Event "Late-Titled-Tuesday-Blitz-August-29-2023"]
[Site "Chess.com"]
[Date "2023.08.29"]
[Round "2"]
[White "GMBenjaminBok"]
[Black "ArtemDyachuk"]
[Result "1-0"]
[WhiteElo "2920"]
[BlackElo "2585"]
[TimeControl "180+1"]
[EndTime "14:17:59 PDT"]
[Termination "GMBenjaminBok won on time"]

1. d4 {[%clk 0:02:57.1]} 1... Nf6 {[%clk 0:02:59.6]} 2. c4 {[%clk 0:02:57]} 2...
e6 {[%clk 0:02:59.7]} 3. Nc3 {[%clk 0:02:57.4]} 3... c5 {[%clk 0:02:59.4]} 4.
Nf3 {[%clk 0:02:55.6]} 4... cxd4 {[%clk 0:02:57.6]} 5. Nxd4 {[%clk 0:02:56.5]}
5... d5 {[%clk 0:02:58.1]} 6. e3 {[%clk 0:02:46.3]} 6... Be7 {[%clk 0:02:49.5]}
7. Nf3 {[%clk 0:02:37]} 7... O-O {[%clk 0:02:48.5]} 8. cxd5 {[%clk 0:02:36.9]}
8... exd5 {[%clk 0:02:46.7]} 9. Be2 {[%clk 0:02:37.1]} 9... Nc6 {[%clk
0:02:43.5]} 10. O-O {[%clk 0:02:37.8]} 10... Bf5 {[%clk 0:02:42.5]} 11. b3
{[%clk 0:02:37.9]} 11... Rc8 {[%clk 0:02:34.2]} 12. Bb2 {[%clk 0:02:38.4]} 12...
Bd6 {[%clk 0:02:31.6]} 13. Rc1 {[%clk 0:02:37.6]} 13... Bb8 {[%clk 0:02:30.6]}
14. g3 {[%clk 0:02:30.5]} 14... h6 {[%clk 0:02:17]} 15. Re1 {[%clk 0:02:26.4]}
15... Re8 {[%clk 0:02:15.3]} 16. Nh4 {[%clk 0:02:09.1]} 16... Bh7 {[%clk
0:02:07.9]} 17. Nb5 {[%clk 0:01:45.4]} 17... Ne4 {[%clk 0:01:38.4]} 18. Bg4
{[%clk 0:01:41.8]} 18... a6 {[%clk 0:00:58]} 19. Bxc8 {[%clk 0:01:41.1]} 19...
Qxc8 {[%clk 0:00:58.9]} 20. Nd4 {[%clk 0:01:40.9]} 20... Ng5 {[%clk 0:00:40.9]}
21. Nxc6 {[%clk 0:01:10.3]} 21... bxc6 {[%clk 0:00:41.8]} 22. Qh5 {[%clk
0:00:54.2]} 22... Qh3 {[%clk 0:00:32.8]} 23. Qe2 {[%clk 0:00:40.1]} 23... Ba7
{[%clk 0:00:19.2]} 24. Qf1 {[%clk 0:00:24.3]} 24... Qg4 {[%clk 0:00:15.1]} 25.
Bd4 {[%clk 0:00:19.9]} 25... Bxd4 {[%clk 0:00:07.9]} 26. exd4 {[%clk 0:00:20.8]}
26... Rxe1 {[%clk 0:00:06]} 27. Rxe1 {[%clk 0:00:20.4]} 27... Be4 {[%clk
0:00:06.6]} 28. f3 {[%clk 0:00:17.4]} 28... Bxf3 {[%clk 0:00:04.2]} 29. Re8+
{[%clk 0:00:15.1]} 29... Kh7 {[%clk 0:00:03.9]} 30. Nxf3 {[%clk 0:00:15.9]}
30... Nxf3+ {[%clk 0:00:03.8]} 31. Kg2 {[%clk 0:00:15.9]} 31... Ng5 {[%clk
0:00:03.4]} 32. Qf4 {[%clk 0:00:11.2]} 1-0